[Event "Late-Titled-Tuesday-Blitz-October-17-2023"]
[Site "Chess.com"]
[Date "2023.10.17"]
[Round "11"]
[White "TheMagician"]
[Black "lluiss"]
[Result "1-0"]
[WhiteElo "2235"]
[BlackElo "2208"]
[TimeControl "180+1"]
[EndTime "16:00:03 PDT"]
[Termination "TheMagician won by resignation"]

1. d4 {[%clk 0:03:00.9]} 1... Nf6 {[%clk 0:02:59.3]} 2. Nf3 {[%clk 0:03:00.7]}
2... g6 {[%clk 0:02:59.2]} 3. c4 {[%clk 0:03:00.3]} 3... Bg7 {[%clk 0:02:59.1]}
4. Nc3 {[%clk 0:02:59.3]} 4... d5 {[%clk 0:02:59.7]} 5. cxd5 {[%clk 0:02:58]}
5... Nxd5 {[%clk 0:03:00.6]} 6. e4 {[%clk 0:02:58]} 6... Nxc3 {[%clk 0:03:00.6]}
7. bxc3 {[%clk 0:02:57.8]} 7... c5 {[%clk 0:03:01.2]} 8. Be3 {[%clk 0:02:53.8]}
8... Qa5 {[%clk 0:03:00.4]} 9. Qd2 {[%clk 0:02:52.2]} 9... Nc6 {[%clk 0:03:00]}
10. Rc1 {[%clk 0:02:49]} 10... cxd4 {[%clk 0:03:00.1]} 11. cxd4 {[%clk
0:02:48.3]} 11... Qxd2+ {[%clk 0:03:00.1]} 12. Kxd2 {[%clk 0:02:47.9]} 12... e6
{[%clk 0:02:59.2]} 13. Bb5 {[%clk 0:02:46.7]} 13... O-O {[%clk 0:02:59.2]} 14.
Bxc6 {[%clk 0:02:44.7]} 14... bxc6 {[%clk 0:02:58.7]} 15. Ne5 {[%clk 0:02:36.6]}
15... Bxe5 {[%clk 0:02:01.1]} 16. dxe5 {[%clk 0:02:34.8]} 16... Bb7 {[%clk
0:01:41.8]} 17. Bg5 {[%clk 0:02:24.5]} 17... Rab8 {[%clk 0:01:33.1]} 18. Ke3
{[%clk 0:02:06.2]} 18... Rfc8 {[%clk 0:01:29.9]} 19. Rc5 {[%clk 0:01:57.4]}
19... Ba6 {[%clk 0:01:28]} 20. Rhc1 {[%clk 0:01:48.1]} 20... Rb6 {[%clk
0:01:25.4]} 21. Bf6 {[%clk 0:01:40.2]} 21... h5 {[%clk 0:01:24.4]} 22. h4 {[%clk
0:01:38.4]} 22... Bb5 {[%clk 0:01:19.8]} 23. R5c2 {[%clk 0:01:35]} 23... Ba4
{[%clk 0:01:18.7]} 24. Rd2 {[%clk 0:01:33.9]} 24... c5 {[%clk 0:01:15.5]} 25.
Rxc5 {[%clk 0:01:24.5]} 25... Rcb8 {[%clk 0:01:07.8]} 26. Rd3 {[%clk 0:01:10.4]}
26... Bb5 {[%clk 0:01:04.3]} 27. Rdc3 {[%clk 0:01:10]} 27... Be8 {[%clk
0:00:54.7]} 28. Rc8 {[%clk 0:01:08.7]} 28... Kf8 {[%clk 0:00:52.3]} 29. Kf4
{[%clk 0:01:04.8]} 29... Rb2 {[%clk 0:00:37.5]} 30. Rxb8 {[%clk 0:00:58.8]}
30... Rxb8 {[%clk 0:00:37.2]} 31. Rc2 {[%clk 0:00:58.1]} 31... a5 {[%clk
0:00:36]} 32. Rc5 {[%clk 0:00:51.1]} 32... a4 {[%clk 0:00:35.4]} 33. a3 {[%clk
0:00:50.7]} 33... Rb3 {[%clk 0:00:33.5]} 34. Rc7 {[%clk 0:00:49.9]} 34... Rxa3
{[%clk 0:00:32.2]} 35. Be7+ {[%clk 0:00:50]} 1-0

[Event "Late-Titled-Tuesday-Blitz-October-17-2023"]
[Site "Chess.com"]
[Date "2023.10.17"]
[Round "11"]
[White "wgraif"]
[Black "marik_spb"]
[Result "1-0"]
[WhiteElo "2525"]
[BlackElo "2438"]
[TimeControl "180+1"]
[EndTime "16:00:09 PDT"]
[Termination "wgraif won by resignation"]

1. e4 {[%clk 0:02:57.4]} 1... c6 {[%clk 0:02:55.1]} 2. d4 {[%clk 0:02:55.8]}
2... d5 {[%clk 0:02:54.4]} 3. Nc3 {[%clk 0:02:56.4]} 3... dxe4 {[%clk
0:02:54.4]} 4. Bc4 {[%clk 0:02:57]} 4... Nf6 {[%clk 0:02:49.5]} 5. f3 {[%clk
0:02:55.7]} 5... Bf5 {[%clk 0:01:52.8]} 6. fxe4 {[%clk 0:02:47.2]} 6... Nxe4
{[%clk 0:01:53.7]} 7. Bxf7+ {[%clk 0:02:46.6]} 7... Kxf7 {[%clk 0:01:51.7]} 8.
Qf3 {[%clk 0:02:46.3]} 8... Nf6 {[%clk 0:01:44.6]} 9. Qxf5 {[%clk 0:02:41.7]}
9... Qxd4 {[%clk 0:01:44.3]} 10. Nf3 {[%clk 0:02:38]} 10... Qd6 {[%clk
0:01:34.7]} 11. Ng5+ {[%clk 0:02:03.1]} 11... Kg8 {[%clk 0:01:28.4]} 12. Bf4
{[%clk 0:02:02.3]} 12... g6 {[%clk 0:01:17.7]} 13. Qc8 {[%clk 0:00:57.7]} 13...
Qxf4 {[%clk 0:00:59]} 14. Qe6+ {[%clk 0:00:22.6]} 14... Kg7 {[%clk 0:00:58.2]}
15. Qf7+ {[%clk 0:00:20.4]} 15... Kh6 {[%clk 0:00:56.8]} 16. Ne6 {[%clk
0:00:19.6]} 16... Nbd7 {[%clk 0:00:46]} 17. Nxf4 {[%clk 0:00:18.7]} 17... Ne5
{[%clk 0:00:34.3]} 18. Qe6 {[%clk 0:00:18]} 18... Neg4 {[%clk 0:00:20.1]} 19. h3
{[%clk 0:00:16.5]} 1-0

[Event "Late-Titled-Tuesday-Blitz-October-17-2023"]
[Site "Chess.com"]
[Date "2023.10.17"]
[Round "11"]
[White "MathiasWomacka"]
[Black "YouShallNotPass001"]
[Result "1-0"]
[WhiteElo "2553"]
[BlackElo "2412"]
[TimeControl "180+1"]
[EndTime "16:00:14 PDT"]
[Termination "MathiasWomacka won by resignation"]

1. e4 {[%clk 0:03:00.9]} 1... c5 {[%clk 0:02:59]} 2. Nf3 {[%clk 0:02:59.5]} 2...
g6 {[%clk 0:02:58.7]} 3. d4 {[%clk 0:02:59.5]} 3... Bg7 {[%clk 0:02:57.7]} 4.
dxc5 {[%clk 0:02:59]} 4... Qa5+ {[%clk 0:02:57.1]} 5. c3 {[%clk 0:02:58.9]} 5...
Qxc5 {[%clk 0:02:57.5]} 6. Na3 {[%clk 0:02:58.9]} 6... Nc6 {[%clk 0:02:56.7]} 7.
Nc4 {[%clk 0:02:41.9]} 7... Nf6 {[%clk 0:02:34.6]} 8. Be3 {[%clk 0:02:33.6]}
8... Qh5 {[%clk 0:02:33.9]} 9. Bd3 {[%clk 0:02:03.2]} 9... d5 {[%clk 0:02:19.9]}
10. exd5 {[%clk 0:01:59.2]} 10... Nxd5 {[%clk 0:02:20.8]} 11. Bd2 {[%clk
0:01:55.3]} 11... Qg4 {[%clk 0:02:10.6]} 12. O-O {[%clk 0:01:53.2]} 12... Nf4
{[%clk 0:02:02.4]} 13. Ne3 {[%clk 0:01:47.3]} 13... Qh5 {[%clk 0:01:46.3]} 14.
Bc4 {[%clk 0:01:32.8]} 14... O-O {[%clk 0:01:16.7]} 15. Re1 {[%clk 0:01:30.3]}
15... Rd8 {[%clk 0:00:38.6]} 16. Nf1 {[%clk 0:01:18.1]} 16... Bg4 {[%clk
0:00:30.4]} 17. Qb3 {[%clk 0:00:44.7]} 17... Bxf3 {[%clk 0:00:27.2]} 18. Bxf7+
{[%clk 0:00:41.9]} 18... Kh8 {[%clk 0:00:26.9]} 19. Bxf4 {[%clk 0:00:41.9]}
19... Qg4 {[%clk 0:00:13.2]} 20. Bg3 {[%clk 0:00:39.6]} 20... Bxg2 {[%clk
0:00:05.3]} 21. Kxg2 {[%clk 0:00:38.7]} 21... h5 {[%clk 0:00:06.1]} 22. Qe6
{[%clk 0:00:34.3]} 22... Qg5 {[%clk 0:00:06.8]} 23. Qxg6 {[%clk 0:00:33.7]} 1-0

[Event "Late-Titled-Tuesday-Blitz-October-17-2023"]
[Site "Chess.com"]
[Date "2023.10.17"]
[Round "11"]
[White "SanchezKelvin"]
[Black "egnfanclub"]
[Result "1-0"]
[WhiteElo "2565"]
[BlackElo "2344"]
[TimeControl "180+1"]
[EndTime "16:00:17 PDT"]
[Termination "SanchezKelvin won by resignation"]

1. e4 {[%clk 0:03:00.9]} 1... e5 {[%clk 0:02:59.3]} 2. Nf3 {[%clk 0:03:00.5]}
2... Nc6 {[%clk 0:02:59.1]} 3. Bb5 {[%clk 0:03:01]} 3... a6 {[%clk 0:02:58.9]}
4. Ba4 {[%clk 0:03:01.5]} 4... d6 {[%clk 0:02:59.4]} 5. c4 {[%clk 0:03:00.8]}
5... Bg4 {[%clk 0:02:56.4]} 6. Nc3 {[%clk 0:03:00.3]} 6... Ne7 {[%clk
0:02:37.9]} 7. h3 {[%clk 0:02:58.5]} 7... Bd7 {[%clk 0:02:32.7]} 8. Bxc6 {[%clk
0:02:53.5]} 8... bxc6 {[%clk 0:02:29.3]} 9. d4 {[%clk 0:02:52.9]} 9... f6 {[%clk
0:02:29.7]} 10. Be3 {[%clk 0:02:51.7]} 10... g6 {[%clk 0:02:26.5]} 11. dxe5
{[%clk 0:02:48.8]} 11... fxe5 {[%clk 0:02:25.1]} 12. Qd2 {[%clk 0:02:41.2]}
12... c5 {[%clk 0:02:15.6]} 13. Bg5 {[%clk 0:02:40.6]} 13... Bc6 {[%clk
0:02:08.3]} 14. Bf6 {[%clk 0:02:37.4]} 14... Rg8 {[%clk 0:02:08.3]} 15. Ng5
{[%clk 0:02:34.6]} 15... h6 {[%clk 0:01:47.9]} 16. Ne6 {[%clk 0:02:26.9]} 16...
Qd7 {[%clk 0:01:48.4]} 17. Nxf8 {[%clk 0:02:25.7]} 17... Rxf8 {[%clk 0:01:49.1]}
18. Bxe7 {[%clk 0:02:25.9]} 18... Qxe7 {[%clk 0:01:45.2]} 19. Qxh6 {[%clk
0:02:25]} 19... Qf7 {[%clk 0:01:30.3]} 20. O-O {[%clk 0:02:20.9]} 20... O-O-O
{[%clk 0:01:28]} 21. Nd5 {[%clk 0:02:03]} 21... Rh8 {[%clk 0:01:11]} 22. Qg5
{[%clk 0:02:02.3]} 22... Rdf8 {[%clk 0:01:08.7]} 23. f4 {[%clk 0:01:52]} 23...
Bxd5 {[%clk 0:00:49.3]} 24. fxe5 {[%clk 0:01:51.7]} 24... Qe6 {[%clk 0:00:42.4]}
25. exd5 {[%clk 0:01:48.7]} 25... Qxe5 {[%clk 0:00:42.9]} 26. Qxe5 {[%clk
0:01:48]} 26... dxe5 {[%clk 0:00:43.8]} 27. Rae1 {[%clk 0:01:46.6]} 27... Rxf1+
{[%clk 0:00:38.8]} 28. Kxf1 {[%clk 0:01:46.6]} 28... Re8 {[%clk 0:00:39.4]} 29.
Ke2 {[%clk 0:01:44.1]} 29... Kd7 {[%clk 0:00:39.9]} 30. Rf1 {[%clk 0:01:43.8]}
30... Rb8 {[%clk 0:00:37.3]} 31. b3 {[%clk 0:01:43.4]} 31... a5 {[%clk
0:00:35.9]} 32. Kd3 {[%clk 0:01:41.7]} 32... a4 {[%clk 0:00:35.8]} 33. Rf7+
{[%clk 0:01:37.9]} 33... Kd6 {[%clk 0:00:35.5]} 34. Rf6+ {[%clk 0:01:37.7]}
34... Kd7 {[%clk 0:00:36]} 35. bxa4 {[%clk 0:01:35.3]} 35... Rb2 {[%clk
0:00:34.8]} 36. Rxg6 {[%clk 0:01:35.3]} 36... Rxa2 {[%clk 0:00:35.4]} 37. h4
{[%clk 0:01:32.9]} 37... Rxa4 {[%clk 0:00:29.7]} 38. h5 {[%clk 0:01:33]} 38...
e4+ {[%clk 0:00:29.8]} 39. Kxe4 {[%clk 0:01:27.1]} 39... Rxc4+ {[%clk
0:00:29.8]} 40. Ke5 {[%clk 0:01:27.3]} 40... Rh4 {[%clk 0:00:28]} 41. g4 {[%clk
0:01:23.9]} 41... c4 {[%clk 0:00:27.8]} 42. Kf5 {[%clk 0:01:20.7]} 42... c3
{[%clk 0:00:27.4]} 43. Rc6 {[%clk 0:01:20.4]} 43... Rh3 {[%clk 0:00:27.6]} 44.
Kg6 {[%clk 0:01:16.9]} 44... Rd3 {[%clk 0:00:25.3]} 45. g5 {[%clk 0:01:14.2]}
1-0

[Event "Late-Titled-Tuesday-Blitz-October-17-2023"]
[Site "Chess.com"]
[Date "2023.10.17"]
[Round "11"]
[White "alexrustemov"]
[Black "Zhigalko_Sergei"]
[Result "0-1"]
[WhiteElo "2816"]
[BlackElo "2949"]
[TimeControl "180+1"]
[EndTime "16:00:20 PDT"]
[Termination "Zhigalko_Sergei won by resignation"]

1. d4 {[%clk 0:02:56.2]} 1... Nf6 {[%clk 0:02:59.9]} 2. Nf3 {[%clk 0:02:55.9]}
2... e6 {[%clk 0:03:00.1]} 3. c4 {[%clk 0:02:55.3]} 3... b6 {[%clk 0:03:00.4]}
4. Nc3 {[%clk 0:02:53.3]} 4... Bb4 {[%clk 0:03:00.2]} 5. Qc2 {[%clk 0:02:51.2]}
5... Bb7 {[%clk 0:02:59.4]} 6. a3 {[%clk 0:02:49.7]} 6... Bxc3+ {[%clk
0:02:59.4]} 7. Qxc3 {[%clk 0:02:49.7]} 7... O-O {[%clk 0:02:59.9]} 8. g3 {[%clk
0:02:46.2]} 8... d6 {[%clk 0:02:56.6]} 9. Bg2 {[%clk 0:02:46.1]} 9... Nbd7
{[%clk 0:02:57.3]} 10. O-O {[%clk 0:02:46.3]} 10... a5 {[%clk 0:02:56.7]} 11. b3
{[%clk 0:02:44]} 11... h6 {[%clk 0:02:56.3]} 12. Bb2 {[%clk 0:02:43.7]} 12...
Re8 {[%clk 0:02:56.8]} 13. b4 {[%clk 0:02:40.4]} 13... Be4 {[%clk 0:02:47.8]}
14. Rfd1 {[%clk 0:02:37.1]} 14... Qb8 {[%clk 0:02:41.4]} 15. Bh3 {[%clk
0:02:34.9]} 15... axb4 {[%clk 0:02:39.3]} 16. axb4 {[%clk 0:02:34.8]} 16... b5
{[%clk 0:02:38]} 17. Nd2 {[%clk 0:02:28.7]} 17... Bc6 {[%clk 0:02:15.9]} 18.
Rxa8 {[%clk 0:02:26.5]} 18... Bxa8 {[%clk 0:02:10.7]} 19. f3 {[%clk 0:02:12.9]}
19... bxc4 {[%clk 0:02:09]} 20. Qxc4 {[%clk 0:02:12.7]} 20... Nd5 {[%clk
0:02:04.7]} 21. Rc1 {[%clk 0:02:06.8]} 21... Rc8 {[%clk 0:01:32.8]} 22. b5
{[%clk 0:02:05.9]} 22... c6 {[%clk 0:01:09.5]} 23. e4 {[%clk 0:02:00.9]} 23...
Ne7 {[%clk 0:00:53.2]} 24. bxc6 {[%clk 0:01:51.8]} 24... Qxb2 {[%clk 0:00:41.9]}
25. Rc2 {[%clk 0:01:08.4]} 25... Qa1+ {[%clk 0:00:36.5]} 26. Rc1 {[%clk
0:01:08.3]} 26... Qa5 {[%clk 0:00:16.5]} 27. Bxe6 {[%clk 0:01:04.2]} 27... Rxc6
{[%clk 0:00:14.7]} 28. Bxf7+ {[%clk 0:00:52]} 28... Kf8 {[%clk 0:00:14.7]} 29.
Qf1 {[%clk 0:00:44]} 29... Qxd2 {[%clk 0:00:12.7]} 0-1

[Event "Late-Titled-Tuesday-Blitz-October-17-2023"]
[Site "Chess.com"]
[Date "2023.10.17"]
[Round "11"]
[White "FabianoCaruana"]
[Black "Msb2"]
[Result "0-1"]
[WhiteElo "3098"]
[BlackElo "3087"]
[TimeControl "180+1"]
[EndTime "16:00:22 PDT"]
[Termination "Msb2 won by resignation"]

1. e4 {[%clk 0:03:00.9]} 1... e6 {[%clk 0:03:00.4]} 2. d4 {[%clk 0:03:00.6]}
2... d5 {[%clk 0:03:01.1]} 3. Nc3 {[%clk 0:03:01]} 3... Nf6 {[%clk 0:03:01.2]}
4. Bg5 {[%clk 0:02:58.5]} 4... dxe4 {[%clk 0:03:01.7]} 5. Nxe4 {[%clk
0:02:59.4]} 5... Be7 {[%clk 0:03:02.3]} 6. Nxf6+ {[%clk 0:02:53.7]} 6... Bxf6
{[%clk 0:03:02.4]} 7. Bxf6 {[%clk 0:02:54.2]} 7... Qxf6 {[%clk 0:03:03.3]} 8.
Nf3 {[%clk 0:02:54.6]} 8... O-O {[%clk 0:03:03.5]} 9. Qd2 {[%clk 0:02:54.7]}
9... c5 {[%clk 0:02:56.1]} 10. O-O-O {[%clk 0:02:52.3]} 10... Rd8 {[%clk
0:02:56.3]} 11. Qe3 {[%clk 0:02:50.7]} 11... Nc6 {[%clk 0:02:53.1]} 12. c3
{[%clk 0:02:44.2]} 12... cxd4 {[%clk 0:02:46.8]} 13. Nxd4 {[%clk 0:02:45.1]}
13... Nxd4 {[%clk 0:02:32.7]} 14. Rxd4 {[%clk 0:02:46]} 14... Rxd4 {[%clk
0:02:33]} 15. Qxd4 {[%clk 0:02:46.9]} 15... Qxd4 {[%clk 0:02:33.2]} 16. cxd4
{[%clk 0:02:47.8]} 16... Bd7 {[%clk 0:02:34.1]} 17. Kd2 {[%clk 0:02:44.5]} 17...
Bc6 {[%clk 0:02:31.1]} 18. f3 {[%clk 0:02:33]} 18... Rd8 {[%clk 0:02:22.5]} 19.
Ke3 {[%clk 0:02:33.1]} 19... Bd5 {[%clk 0:02:21]} 20. Bd3 {[%clk 0:02:29.5]}
20... Rc8 {[%clk 0:02:18.6]} 21. a3 {[%clk 0:02:29]} 21... h6 {[%clk 0:02:14.5]}
22. h4 {[%clk 0:02:29.2]} 22... f5 {[%clk 0:02:05.5]} 23. Rg1 {[%clk 0:02:19.8]}
23... g5 {[%clk 0:02:01.5]} 24. hxg5 {[%clk 0:02:18.7]} 24... hxg5 {[%clk
0:02:02.4]} 25. Rh1 {[%clk 0:02:19.2]} 25... Kg7 {[%clk 0:02:00.9]} 26. Kd2
{[%clk 0:01:59.7]} 26... Rd8 {[%clk 0:01:52.6]} 27. Rc1 {[%clk 0:01:52.6]} 27...
Bc6 {[%clk 0:01:51.2]} 28. Ke3 {[%clk 0:01:49.2]} 28... f4+ {[%clk 0:01:50.7]}
29. Ke2 {[%clk 0:01:49.5]} 29... Rxd4 {[%clk 0:01:51.4]} 30. Rh1 {[%clk
0:01:45.3]} 30... g4 {[%clk 0:01:26.8]} 31. Rh7+ {[%clk 0:01:37.9]} 31... Kf6
{[%clk 0:01:27.1]} 32. Rh6+ {[%clk 0:01:37.5]} 32... Ke5 {[%clk 0:01:23.5]} 33.
Bc2 {[%clk 0:01:21.6]} 33... gxf3+ {[%clk 0:01:19.3]} 34. gxf3 {[%clk
0:01:22.5]} 34... Rd6 {[%clk 0:01:05.8]} 35. Rh5+ {[%clk 0:01:05.5]} 35... Kd4
{[%clk 0:01:05.7]} 36. Rh6 {[%clk 0:01:03]} 36... Bd5 {[%clk 0:00:50.5]} 37. Rg6
{[%clk 0:00:47.9]} 37... Bc4+ {[%clk 0:00:50.2]} 38. Kd2 {[%clk 0:00:46.2]}
38... Bd5 {[%clk 0:00:46.5]} 39. Ke2 {[%clk 0:00:44.7]} 39... Rb6 {[%clk
0:00:42.7]} 40. b4 {[%clk 0:00:41.8]} 40... a5 {[%clk 0:00:43]} 41. bxa5 {[%clk
0:00:28]} 41... Rb2 {[%clk 0:00:43.9]} 42. Kd1 {[%clk 0:00:24.8]} 42... Bxf3+
{[%clk 0:00:43.9]} 0-1

[Event "Late-Titled-Tuesday-Blitz-October-17-2023"]
[Site "Chess.com"]
[Date "2023.10.17"]
[Round "11"]
[White "Artem_Koval"]
[Black "PushingpawnsNYC"]
[Result "1-0"]
[WhiteElo "2424"]
[BlackElo "2341"]
[TimeControl "180+1"]
[EndTime "16:00:26 PDT"]
[Termination "Artem_Koval won by resignation"]

1. Nf3 {[%clk 0:03:00.9]} 1... d5 {[%clk 0:01:51]} 2. b3 {[%clk 0:02:59.6]} 2...
Nf6 {[%clk 0:01:51.5]} 3. Bb2 {[%clk 0:03:00.1]} 3... g6 {[%clk 0:01:52.1]} 4.
e3 {[%clk 0:03:00.1]} 4... Bg7 {[%clk 0:01:52.7]} 5. Be2 {[%clk 0:03:00.7]} 5...
O-O {[%clk 0:01:53.3]} 6. O-O {[%clk 0:03:01.3]} 6... c5 {[%clk 0:01:54]} 7. c4
{[%clk 0:03:01.3]} 7... Nc6 {[%clk 0:01:54.7]} 8. d4 {[%clk 0:03:00.3]} 8...
cxd4 {[%clk 0:01:54.3]} 9. exd4 {[%clk 0:03:00]} 9... Bg4 {[%clk 0:01:54.4]} 10.
Nbd2 {[%clk 0:02:59.2]} 10... e6 {[%clk 0:01:54]} 11. h3 {[%clk 0:02:56.7]}
11... Bxf3 {[%clk 0:01:54.3]} 12. Nxf3 {[%clk 0:02:56.2]} 12... Ne4 {[%clk
0:01:54.1]} 13. Bd3 {[%clk 0:02:48]} 13... Ng5 {[%clk 0:01:41.7]} 14. Ne5 {[%clk
0:02:28.8]} 14... f6 {[%clk 0:01:09.5]} 15. Nxc6 {[%clk 0:02:22]} 15... bxc6
{[%clk 0:01:10.4]} 16. Re1 {[%clk 0:02:11.9]} 16... Qd7 {[%clk 0:01:07.8]} 17.
Qd2 {[%clk 0:01:47.2]} 17... Nf7 {[%clk 0:00:51.4]} 18. Rad1 {[%clk 0:01:17.3]}
18... Rfe8 {[%clk 0:00:42.3]} 19. h4 {[%clk 0:01:14.5]} 19... Rad8 {[%clk
0:00:35.3]} 20. h5 {[%clk 0:01:14.2]} 20... e5 {[%clk 0:00:35.4]} 21. hxg6
{[%clk 0:01:13]} 21... hxg6 {[%clk 0:00:35.2]} 22. Bxg6 {[%clk 0:01:12.4]} 22...
e4 {[%clk 0:00:33.9]} 23. Qf4 {[%clk 0:01:06.6]} 23... Nh6 {[%clk 0:00:27.6]}
24. Bxe8 {[%clk 0:01:04.3]} 24... Rxe8 {[%clk 0:00:28.5]} 25. cxd5 {[%clk
0:01:01.7]} 25... cxd5 {[%clk 0:00:28.3]} 26. Rc1 {[%clk 0:01:02.1]} 26... Re7
{[%clk 0:00:27.4]} 27. Ba3 {[%clk 0:00:59.7]} 27... Rf7 {[%clk 0:00:26.7]} 28.
Qd6 {[%clk 0:00:46.2]} 28... Qg4 {[%clk 0:00:25.3]} 29. Qxd5 {[%clk 0:00:35.2]}
29... Nf5 {[%clk 0:00:23.4]} 30. Qxe4 {[%clk 0:00:33.5]} 30... Qg5 {[%clk
0:00:23.3]} 31. Rc5 {[%clk 0:00:30.3]} 1-0

[Event "Late-Titled-Tuesday-Blitz-October-17-2023"]
[Site "Chess.com"]
[Date "2023.10.17"]
[Round "11"]
[White "santosalberto1987"]
[Black "Chesstrainer1"]
[Result "1-0"]
[WhiteElo "2418"]
[BlackElo "2470"]
[TimeControl "180+1"]
[EndTime "16:00:39 PDT"]
[Termination "santosalberto1987 won by resignation"]

1. e4 {[%clk 0:03:00.9]} 1... c5 {[%clk 0:02:59.2]} 2. Nf3 {[%clk 0:03:00.8]}
2... d6 {[%clk 0:02:59.8]} 3. Bb5+ {[%clk 0:02:58.4]} 3... Bd7 {[%clk
0:02:57.6]} 4. Bxd7+ {[%clk 0:02:58.2]} 4... Nxd7 {[%clk 0:02:56]} 5. c4 {[%clk
0:02:58.5]} 5... Ngf6 {[%clk 0:02:49]} 6. Nc3 {[%clk 0:02:58.5]} 6... g6 {[%clk
0:02:48.2]} 7. d4 {[%clk 0:02:58.5]} 7... cxd4 {[%clk 0:02:47.6]} 8. Nxd4 {[%clk
0:02:59.4]} 8... Bg7 {[%clk 0:02:47.9]} 9. Be3 {[%clk 0:02:59]} 9... O-O {[%clk
0:02:26]} 10. Rc1 {[%clk 0:02:56.7]} 10... a6 {[%clk 0:02:09.5]} 11. b3 {[%clk
0:02:51.1]} 11... Qa5 {[%clk 0:01:56.6]} 12. f3 {[%clk 0:02:49.2]} 12... e6
{[%clk 0:01:08]} 13. Qd2 {[%clk 0:02:26.5]} 13... Rfe8 {[%clk 0:01:01.5]} 14.
O-O {[%clk 0:02:24.1]} 14... d5 {[%clk 0:01:01.4]} 15. cxd5 {[%clk 0:01:21.4]}
15... exd5 {[%clk 0:01:00.3]} 16. exd5 {[%clk 0:01:21.6]} 16... Nxd5 {[%clk
0:00:57.3]} 17. Nxd5 {[%clk 0:01:21.8]} 17... Qxd5 {[%clk 0:00:52.3]} 18. Bf2
{[%clk 0:01:18.9]} 18... Rad8 {[%clk 0:00:40.9]} 19. Rfd1 {[%clk 0:01:18.8]}
19... Nc5 {[%clk 0:00:32.7]} 20. Qc2 {[%clk 0:01:17.1]} 20... Rc8 {[%clk
0:00:20.5]} 21. b4 {[%clk 0:01:11.9]} 21... Ne6 {[%clk 0:00:09.5]} 22. Qxc8
{[%clk 0:01:07.1]} 22... Rxc8 {[%clk 0:00:10.4]} 23. Rxc8+ {[%clk 0:01:07.5]}
23... Nf8 {[%clk 0:00:08.9]} 24. Rcc1 {[%clk 0:01:02.9]} 24... Qxa2 {[%clk
0:00:08]} 25. b5 {[%clk 0:00:58]} 25... h5 {[%clk 0:00:07.3]} 26. bxa6 {[%clk
0:00:57.8]} 26... Qxa6 {[%clk 0:00:06.7]} 27. Rb1 {[%clk 0:00:56.8]} 27... Kh7
{[%clk 0:00:05.1]} 28. Rb3 {[%clk 0:00:52.9]} 28... Qa4 {[%clk 0:00:03.8]} 29.
Rbd3 {[%clk 0:00:48.2]} 29... f5 {[%clk 0:00:01.1]} 30. Ne2 {[%clk 0:00:46.3]}
30... Qe8 {[%clk 0:00:01.6]} 31. Nf4 {[%clk 0:00:44.5]} 31... b5 {[%clk
0:00:02.3]} 32. Rb3 {[%clk 0:00:38.5]} 32... Qe5 {[%clk 0:00:02.4]} 33. Bg3
{[%clk 0:00:37]} 33... Qd5 {[%clk 0:00:02.6]} 34. Rxd5 {[%clk 0:00:36.6]} 1-0

[Event "Late-Titled-Tuesday-Blitz-October-17-2023"]
[Site "Chess.com"]
[Date "2023.10.17"]
[Round "11"]
[White "Mikhail_Golubev"]
[Black "leoduarte"]
[Result "0-1"]
[WhiteElo "2535"]
[BlackElo "2406"]
[TimeControl "180+1"]
[EndTime "16:00:44 PDT"]
[Termination "leoduarte won on time"]

1. e4 {[%clk 0:03:00.9]} 1... c5 {[%clk 0:02:59.4]} 2. Nf3 {[%clk 0:03:00.4]}
2... e6 {[%clk 0:02:59.5]} 3. d4 {[%clk 0:03:00.3]} 3... cxd4 {[%clk 0:03:00.2]}
4. Nxd4 {[%clk 0:03:01.2]} 4... Nf6 {[%clk 0:03:00.7]} 5. Nc3 {[%clk 0:03:00.5]}
5... Nc6 {[%clk 0:03:01.2]} 6. a3 {[%clk 0:03:00.1]} 6... d5 {[%clk 0:03:00.3]}
7. exd5 {[%clk 0:02:58.8]} 7... exd5 {[%clk 0:03:01.2]} 8. Bb5 {[%clk
0:02:52.1]} 8... Bd7 {[%clk 0:03:00.9]} 9. O-O {[%clk 0:02:52]} 9... Be7 {[%clk
0:03:01.2]} 10. Nf3 {[%clk 0:02:48.6]} 10... Be6 {[%clk 0:02:42.7]} 11. Nd4
{[%clk 0:02:48.6]} 11... Bd7 {[%clk 0:02:09.3]} 12. Ba4 {[%clk 0:02:48]} 12...
O-O {[%clk 0:02:07.7]} 13. Bb3 {[%clk 0:02:43.6]} 13... Be6 {[%clk 0:02:07.3]}
14. Bf4 {[%clk 0:02:18.1]} 14... Rc8 {[%clk 0:01:55.1]} 15. Nxe6 {[%clk
0:01:48]} 15... fxe6 {[%clk 0:01:53.3]} 16. Bg3 {[%clk 0:01:47.3]} 16... Kh8
{[%clk 0:01:51.6]} 17. Qe2 {[%clk 0:01:43]} 17... Nd4 {[%clk 0:01:48]} 18. Qd3
{[%clk 0:01:27.1]} 18... Nxb3 {[%clk 0:01:45.9]} 19. cxb3 {[%clk 0:01:28]} 19...
Bd6 {[%clk 0:01:42]} 20. Rfe1 {[%clk 0:01:24.7]} 20... Qd7 {[%clk 0:01:40.1]}
21. Rad1 {[%clk 0:01:22.9]} 21... a6 {[%clk 0:01:39.7]} 22. b4 {[%clk
0:01:17.8]} 22... Bxg3 {[%clk 0:01:23.3]} 23. Qxg3 {[%clk 0:01:16.3]} 23... Nh5
{[%clk 0:01:08.8]} 24. Qe3 {[%clk 0:01:04.4]} 24... Nf4 {[%clk 0:01:05.2]} 25.
Rd4 {[%clk 0:01:01.1]} 25... Qf7 {[%clk 0:01:01.4]} 26. f3 {[%clk 0:00:51.4]}
26... Rce8 {[%clk 0:00:58.9]} 27. Qe5 {[%clk 0:00:37.2]} 27... Nxg2 {[%clk
0:00:35.8]} 28. Kxg2 {[%clk 0:00:31.6]} 28... Qxf3+ {[%clk 0:00:35.5]} 29. Kg1
{[%clk 0:00:31.6]} 29... Rf6 {[%clk 0:00:25.1]} 0-1